fUST/lending_fUST_20250825
["ID","MTS","AMOUNT","RATE_DAILY","PERIOD"]
[381130800,1756062632782,-1207.27364242,0.00035413,2]
[381130801,1756062632791,-531.62943675,0.00035439,24]
[381130803,1756062632801,-169.6,0.000355,7]
[381130805,1756062632811,-500.0,0.0003575,5]
[381130806,1756062632821,-500.0,0.0003575,5]
[381130808,1756062632833,-500.0,0.0003575,5]
[381130810,1756062632843,-502.26575725,0.0003575,2]
[381130811,1756062632852,-277.41401511,0.0003575,5]
[381130813,1756062632862,-500.0,0.0003575,5]
[381130814,1756062632872,-647.0,0.00035856,2]
[381130816,1756062632882,-387.1230367,0.0003611,30]
[381130818,1756062632891,-387.1230367,0.0003611,30]
[381130819,1756062632901,-387.1230367,0.0003611,30]
[381130821,1756062632911,-269.3224877,0.0003611,30]
[381130823,1756062632921,-500.0,0.000362,7]
[381130824,1756062632931,-500.0,0.00036298,5]
[381130826,1756062632940,-307.550522,0.00037074,2]
[381130827,1756062632949,-531.62943675,0.00037166,28]
[381130829,1756062632959,-1207.27364242,0.00038215,2]
[381130831,1756062632968,-251.4,0.00038561,3]
[381130832,1756062632978,-317.98,0.00038561,3]
[381130834,1756062632988,-158.99,0.00038561,3]
[381130836,1756062632997,-477.02,0.00038561,3]
[381130837,1756062633007,-15932.5130063,0.00038561,3]
[381130839,1756062633017,-217.07852671,0.00038561,3]
[381130841,1756062633027,-34132.4394062,0.00038571,2]
[381130843,1756062633045,-8930.9355899,0.00038571,2]
[381130844,1756062633056,-500.0,0.000386,5]
[381130846,1756062633066,-531.62943675,0.00038892,32]
[381130847,1756062633077,-1000.0,0.00039148,5]
[381130849,1756062633089,-410.140764,0.00039654,2]
[381130851,1756062633099,-1035.98602722,0.00039696,5]
[381130852,1756062633110,-181.35623739,0.00039831,2]
[381130854,1756062633121,-502.8,0.00039931,3]
[381130855,1756062633132,-635.96,0.00039931,3]
[381130857,1756062633146,-317.98,0.00039931,3]
[381130859,1756062633156,-307.550522,0.00040498,2]
[381130861,1756062633166,-531.62943675,0.00040619,36]
[381130862,1756062633176,-1207.27364242,0.00041018,28]
[381130864,1756062633186,-114.26048742,0.000411,14]
[381130938,1756062638132,-5411.07951258,0.000411,14]
[381130939,1756062638142,-531.62943675,0.00042345,39]
[381130940,1756062638151,-251.4,0.00042455,30]
[381130941,1756062638160,-1000.0,0.00042465,15]
[381130942,1756062638170,-1207.27364242,0.0004382,28]
[381130943,1756062638179,-907.21025597,0.00043835,120]
[381130944,1756062638189,-307.550522,0.00043923,2]
[381130946,1756062638198,-531.62943675,0.00044072,43]
[381130947,1756062638207,-500.0,0.00044517,30]
[381130949,1756062638216,-1789.776865,0.00045248,2]
[381130950,1756062638226,-531.62943675,0.00045798,47]
[381130952,1756062638235,-169.6,0.000458,14]
[381130953,1756062638244,-410.140764,0.00046143,2]
[381130954,1756062638253,-1000.0,0.00046575,120]
[381130955,1756062638262,-1021.15,0.00046602,120]
[381130956,1756062638271,-1207.27364242,0.00046623,28]
[381130957,1756062638280,-5525.34,0.000467,14]
[381130958,1756062638289,-157.0,0.00047,90]
[381130959,1756062638298,-531.62943675,0.00047525,50]
[381130960,1756062638307,-186.78528845,0.000479,14]
[381130961,1756062638317,-1030.19,0.000486,120]
[381130962,1756062638326,-1000.0,0.000488,2]
[381130963,1756062638335,-15932.5130063,0.0004886,4]
[381130964,1756062638345,-3993.98,0.0004887,120]
[381130965,1756062638354,-157.0,0.00048904,90]
[381130966,1756062638363,-268.05364597,0.00049,120]
[381130967,1756062638372,-500.0,0.0004904,60]
[381130968,1756062638382,-1500.0,0.00049041,120]
[381130969,1756062638394,-1231.56,0.00049041,120]
[381130970,1756062638403,-918.54963045,0.000491,10]
[381130971,1756062638412,-49832.22305824,0.000491,120]
[381130972,1756062638428,-4129.69502704,0.000491,120]
[381131040,1756062640335,-821.76479749,0.000491,120]
[381131064,1756062643441,-2472.7398281,0.000491,120]
[381131086,1756062646333,-1934.71622119,0.000491,120]
[381131087,1756062646345,-1847.72887281,0.000491,120]
[381131089,1756062777053,248.09373715,0.000199,2]
[381131090,1756062777217,248.09373715,0.00026806,6]
[381131091,1756062777611,248.09373715,0.00021627,2]
[381131092,1756062777824,248.09373715,0.00023353,2]
[381131093,1756062777972,248.09373715,0.0002508,2]
[381131095,1756062957391,226.76718727,0.00021627,2]
[381131096,1756062958209,226.76718727,0.0002508,2]
[381131097,1756062958260,226.76718727,0.00026806,6]
[381131098,1756062958404,226.76718727,0.00023353,2]
[381131099,1756063133156,393.0631246,0.0002249,2]
[381131100,1756063133498,393.0631246,0.00024216,2]
[381131101,1756063133550,393.0631246,0.00025943,4]
[381131102,1756063296435,287.098534,0.00013699,2]
[381131103,1756063296959,287.098534,0.00020187,2]
[381131104,1756063297188,287.098534,0.00026676,2]
[381131105,1756063300126,314.45049968,0.0002249,2]
[381131106,1756063300283,314.45049968,0.00025943,4]
[381131107,1756063300386,314.45049968,0.00024216,2]
[381131108,1756063467286,300.40709746,0.0002249,2]
[381131109,1756063467394,300.40709746,0.00024216,2]
[381131110,1756063467506,300.40709746,0.00025943,4]
[381131112,1756063642172,240.32567798,0.0002249,2]
[381131113,1756063642644,240.32567798,0.00025943,4]
[381131114,1756063642754,240.32567798,0.00024216,2]
[381131116,1756063723867,150.0,0.00025,2]
[381131117,1756063724311,2244.76149428,0.00024,2]
[381131118,1756063725361,150.999999,0.00025,5]
[381131119,1756063728968,151.0,0.00030935,120]
[381131120,1756063814791,516.17972642,0.000199,2]
[381131121,1756063814947,516.17972623,0.00021627,2]
[381131122,1756063815151,516.17972623,0.00023353,2]
[381131123,1756063815254,516.17972623,0.0002508,2]
[381131124,1756063815514,516.17972623,0.00026806,6]
[381131132,1756063832470,-516.17972623,0.00028533,10]
[381131134,1756063832479,-3211.6082832,0.00028994,2]
[381131135,1756063832489,-160.0,0.00029,10]
[381131136,1756063832498,-300.0,0.00029999,2]
[381131138,1756063832507,-300.0,0.00029999,2]
[381131140,1756063832517,-939.0,0.00029999,2]
[381131143,1756063832526,-417.52468797,0.0003,120]
[381131146,1756063832535,-715.22334226,0.0003,120]
[381131149,1756063832544,-403.18919427,0.0003,10]
[381131152,1756063832553,-202.72230618,0.0003,120]
[381131154,1756063832562,-727.5207651,0.0003,120]
[381131156,1756063832571,-182.90401557,0.0003,120]
[381131157,1756063832580,-242.46439042,0.0003,120]
[381131159,1756063832590,-515.1216964,0.0003,120]
[381131161,1756063832602,-375.50290563,0.0003,120]
[381131163,1756063832611,-417.00880825,0.0003,30]
[381131164,1756063832620,-233.44357413,0.00030021,2]
[381131166,1756063832630,-200.0,0.00030107,120]
[381131167,1756063832640,-3600.0,0.0003013,120]
[381131169,1756063832650,-855.52748264,0.0003013,15]
[381131170,1756063832659,-284.09789342,0.0003013,2]
[381131171,1756063832668,-736.25852557,0.00030136,120]
[381131172,1756063832678,-975.3121391,0.000302,2]
[381131173,1756063832689,-211.2017087,0.000302,2]
[381131174,1756063832701,-516.17972623,0.00030259,13]
[381131175,1756063832711,-300.0,0.00030732,20]
[381131176,1756063832720,-300.0,0.00030732,20]
[381131177,1756063832729,-300.0,0.00030732,20]
[381131178,1756063832739,-300.0,0.00030732,20]
[381131179,1756063832747,-172.75125979,0.00030732,20]
[381131184,1756063838338,-127.24874021,0.00030732,20]
[381131185,1756063838349,-300.0,0.00030732,20]
[381131186,1756063838358,-452.72761596,0.00030835,2]
[381131187,1756063838369,-725.42494953,0.00030835,2]
[381131188,1756063838378,-8528.57889961,0.00030835,2]
[381131189,1756063838387,-1158.5,0.00030925,3]
[381131190,1756063838397,-579.25,0.00030925,3]
[381131191,1756063838406,-289.62,0.00030925,3]
[381131192,1756063838416,-868.89,0.00030925,3]
[381131193,1756063838425,-446.64,0.00030925,3]
[381131194,1756063838435,-297.76,0.00030925,3]
[381131195,1756063838444,-893.28,0.00030925,3]
[381131196,1756063838454,-893.32,0.00030925,3]
[381131197,1756063838463,-160.0,0.00030932,2]
[381131198,1756063838472,-170.31601477,0.00030934,2]
[381131199,1756063838482,-500.0,0.00030934,2]
[381131200,1756063838491,-500.0,0.00030934,2]
[381131201,1756063838500,-227.17383553,0.00030934,2]
[381131202,1756063838509,-1244221.29064546,0.00030935,20]
[381131203,1756063838520,-99542.1675808,0.00030935,20]
[381131460,1756063990702,395.73779039,0.000199,2]
[381131461,1756063990836,395.7377901,0.00026806,6]
[381131462,1756063991280,395.7377901,0.00023353,2]
[381131463,1756063991550,395.7377901,0.00021627,2]
[381131464,1756063991605,395.7377901,0.0002508,2]
[381131466,1756064225973,327.417029,0.00013699,2]
[381131467,1756064226190,327.417029,0.00020187,2]
[381131468,1756064226854,327.417029,0.00026676,2]
[381131469,1756064377431,219.0089707,0.000199,2]
[381131470,1756064378086,219.00897043,0.00021627,2]
[381131471,1756064378155,219.00897043,0.00023353,2]
[381131472,1756064378320,219.00897043,0.0002508,2]
[381131473,1756064378473,219.00897043,0.00026806,6]
[381131475,1756064568666,335.81375464,0.0002249,2]
[381131476,1756064568967,335.81375464,0.00024216,2]
[381131477,1756064569296,335.81375464,0.00025943,4]
[381131478,1756064670787,-335.81375464,0.00027669,8]
[381131479,1756064670819,-206.11,0.00028158,15]
[381131480,1756064670850,-206.11,0.00028258,15]
[381131481,1756064670870,-300.0,0.00028432,2]
[381131482,1756064670879,-35.81375464,0.00028433,2]
[381131483,1756064670895,-206.11,0.00028433,2]
[381131484,1756064670906,-206.11,0.00028433,2]
[381131485,1756064670927,-103.93249072,0.00028433,2]
[381131486,1756064691804,-188.2674174,0.00027876,2]
[381131487,1756064691832,-219.69089678,0.00028333,2]
[381131488,1756064691844,-184.08337164,0.00028333,2]
[381131489,1756064691855,-4.18404576,0.00028433,2]
[381131490,1756064691915,-403.77426842,0.00028433,2]
[381131491,1756064734821,1038.8028219,0.00027486,2]
[381131492,1756064768219,298.00368684,0.0002249,2]
[381131493,1756064768484,298.00368684,0.00024216,2]
[381131494,1756064768593,298.00368684,0.00025943,4]
[381131496,1756064943012,238.40294948,0.0002249,2]
[381131497,1756064943103,238.40294948,0.00025943,4]
[381131498,1756064943367,238.40294948,0.00024216,2]
[381131499,1756064977752,666.0,0.00027422,2]
[381131689,1756065033622,-238.40294948,0.00027669,8]
[381131690,1756065033632,-300.0,0.00027991,2]
[381131691,1756065033641,-9145.39705052,0.00027992,2]
[381131692,1756065033654,-854.60294948,0.00027992,2]
[381131693,1756065033663,-323.01941472,0.00028364,2]
[381131694,1756065033673,-12978.24471541,0.00028433,2]
[381131695,1756065033683,-307.550522,0.00028606,2]
[381131696,1756065033693,-1000.0,0.0002888,30]
[381131697,1756065033703,-500.0,0.00028906,2]
[381131698,1756065033713,-266.35913439,0.00028906,2]
[381131699,1756065033723,-500.0,0.00028906,2]
[381131700,1756065033732,-500.0,0.00028906,2]
[381131701,1756065033742,-500.0,0.00028906,2]
[381131702,1756065033751,-14155.9911266,0.00028907,2]
[381131703,1756065033761,-655.45059771,0.00029296,2]
[381131704,1756065033770,-238.40294948,0.00029396,11]
[381131705,1756065033780,-894.888432,0.00029821,2]
[381131706,1756065033789,-420.0,0.00030231,2]
[381131707,1756065033800,-181.35623739,0.000308,2]
[381131708,1756065033810,-160.0,0.00030803,2]
[381131709,1756065033820,-2755.64889133,0.0003082,2]
[381131710,1756065033830,-2585.14,0.00030888,3]
[381131711,1756065033840,-1387.08,0.00030888,3]
[381131712,1756065033849,-693.54,0.00030888,3]
[381131713,1756065033859,-346.77,0.00030888,3]
[381131714,1756065033868,-173.39,0.00030888,3]
[381131715,1756065033878,-520.17,0.00030888,3]
[381131716,1756065033887,-529.35,0.0003089,10]
[381131717,1756065033897,-500.0,0.00030899,2]
[381131718,1756065033907,-500.0,0.00030899,2]
[381131719,1756065033917,-170.31601477,0.00030899,2]
[381131720,1756065033926,-227.17383553,0.00030899,2]
[381131721,1756065033935,-541.55517919,0.000309,5]
[381131722,1756065033947,-868.31212081,0.000309,5]
[381131723,1756065033955,-46405.39094072,0.000309,20]
[381131724,1756065033975,-390.91059976,0.000309,20]
[381131725,1756065033987,-251.4541481,0.000309,20]
[381131726,1756065033998,-1120.2,0.000309,20]
[381131727,1756065034011,-545.18028167,0.000309,20]
[381131729,1756065034035,-1125.4376681,0.000309,20]
[381131730,1756065034049,-19985.70544799,0.000309,20]
[381132019,1756065038550,-258.4155318,0.00028166,2]
[381132021,1756065038560,-258.41553178,0.00028251,2]
[381132023,1756065038569,-258.41553178,0.00028337,2]
[381132025,1756065038578,-258.41553178,0.00028422,2]
[381132028,1756065038588,-10185.18881936,0.000309,20]
[381132030,1756065038600,-30384.3488256,0.000309,20]
[381132032,1756065038612,-2458.38841085,0.000309,20]
[381132034,1756065038623,-865.11273503,0.000309,20]
[381132037,1756065038642,-396878.59972413,0.000309,20]
[381132039,1756065038651,-3046.9741015,0.0003092,2]
[381132041,1756065038661,-334.54178551,0.00030973,5]
[381132044,1756065038670,-500.0,0.00030973,5]
[381132046,1756065038679,-500.0,0.00030973,5]
[381132048,1756065038688,-4268.79,0.00031,2]
[381132050,1756065038697,-153.0,0.00031,120]
[381132052,1756065038706,-3259.56,0.00031,7]
[381132054,1756065038716,-426.64,0.00031,7]
[381132056,1756065038725,-12109.32,0.00031,7]
[381132058,1756065038734,-844.67759735,0.00031,7]
[381132060,1756065038743,-376.22310801,0.00031,7]
[381132062,1756065038753,-217.07852671,0.00031,7]
[381132064,1756065038762,-238.40294948,0.00031123,15]
[381132066,1756065038771,-160.0,0.00031124,2]
[381132068,1756065038781,-300.0,0.00031503,20]
[381132069,1756065038791,-300.0,0.00031503,20]
[381132070,1756065038803,-1000.0,0.00031521,5]
[381132071,1756065038813,-1000.0,0.00031521,5]
[381132073,1756065038824,-300.0,0.00031553,20]
[381132075,1756065038834,-300.0,0.00031553,20]
[381132077,1756065038845,-300.0,0.00031553,20]
[381132079,1756065038855,-300.0,0.00031553,20]
[381132081,1756065038866,-300.0,0.00031553,20]
[381132083,1756065038877,-300.0,0.00031553,20]
[381132085,1756065038888,-300.0,0.00031553,20]
[381132087,1756065038898,-300.0,0.00031553,20]
[381132089,1756065038908,-300.0,0.00031553,20]
[381132091,1756065038918,-300.0,0.00031553,20]
[381132093,1756065038927,-180.0,0.00031671,2]
[381132095,1756065038937,-307.550522,0.00032031,2]
[381132097,1756065038946,-500.0,0.00032068,5]
[381132099,1756065038957,-1500.0,0.00032068,5]
[381132101,1756065038967,-5170.28,0.00032258,3]
[381132103,1756065038977,-2774.16,0.00032258,3]
[381132105,1756065038986,-1387.08,0.00032258,3]
[381132107,1756065038995,-693.54,0.00032258,3]
[381132109,1756065039005,-346.78,0.00032258,3]
[381132111,1756065039014,-160.0,0.00032258,3]
[381132113,1756065039024,-844.67759735,0.00032258,3]
[381132116,1756065039033,-376.22310801,0.00032258,3]
[381132118,1756065039042,-217.07852671,0.00032258,3]
[381132119,1756065039055,-2000.0,0.00032273,7]
[381132121,1756065039068,-655.45059771,0.00032533,2]
[381132124,1756065039079,-545.84608224,0.00032616,5]
[381132126,1756065039088,-260.0,0.00032649,2]
[381132128,1756065039098,-238.40294963,0.00032849,19]
[381132130,1756065039108,-238.40294948,0.00032849,19]
[381132132,1756065039117,-500.0,0.00032876,120]
[381132133,1756065039126,-25495.2734409,0.00032974,2]
[381132135,1756065039135,-327.417029,0.00033165,2]
[381132138,1756065039146,-219.0,0.00033392,2]
[381132174,1756065039375,-217.0,0.00033808,2]
[381132177,1756065039386,-181.35623738,0.00033881,2]
[381132180,1756065039396,-217.0,0.00034127,7]
[381132183,1756065039405,-217.0,0.00034157,120]
[381132186,1756065039415,-219.0,0.00034338,7]
[381132189,1756065039424,-168.0,0.00034338,2]
[381132192,1756065039434,-153.0,0.000344,120]
[381132195,1756065039444,-168.0,0.00034408,2]
[381132197,1756065039453,-500.0,0.0003452,120]
[381132199,1756065039464,-168.0,0.00034562,2]
[381132202,1756065039473,-217.0,0.00034619,7]
[381132203,1756065039483,-168.0,0.00034741,2]
[381132205,1756065039492,-168.0,0.00034922,2]
[381132208,1756065039502,-168.0,0.00034957,2]
[381132210,1756065039512,-168.0,0.00035402,2]
[381132212,1756065039521,-307.550522,0.00035456,2]
[381132214,1756065039531,-12109.32,0.000355,14]
[381132216,1756065039540,-217.0,0.00035622,7]
[381132218,1756065039549,-217.0,0.00035639,2]
[381132220,1756065039560,-655.45059771,0.0003577,2]
[381132222,1756065039569,-160.0,0.0003584,2]
[381132224,1756065039579,-217.0,0.00035841,2]
[381132226,1756065039588,-168.0,0.00035947,2]
[381132228,1756065039597,-217.0,0.00035973,2]
[381132230,1756065039607,-3259.56,0.00036,7]
[381132232,1756065039616,-219.0,0.00036053,120]
[381132234,1756065039625,-217.0,0.00036063,2]
[381132236,1756065039635,-500.0,0.00036164,120]
[381132238,1756065039644,-217.0,0.00036171,2]
[381132240,1756065039653,-219.0,0.00036252,2]
[381132242,1756065039662,-168.0,0.00036301,2]
[381132244,1756065039671,-238.40294948,0.00036302,26]
[381132246,1756065039681,-168.0,0.00036348,2]
[381132248,1756065039690,-168.0,0.00036385,2]
[381132250,1756065039699,-181.35623738,0.00036963,2]
[381132252,1756065039709,-326.0,0.00037071,14]
[381132254,1756065039719,-326.0,0.00037071,14]
[381132256,1756065039730,-326.0,0.00037071,14]
[381132258,1756065039739,-326.0,0.00037071,14]
[381132260,1756065039749,-326.0,0.00037071,14]
[381132262,1756065039758,-326.0,0.00037071,14]
[381132264,1756065039769,-326.0,0.00037071,14]
[381132266,1756065039778,-326.0,0.00037071,14]
[381132268,1756065039787,-326.0,0.00037071,14]
[381132270,1756065039797,-326.0,0.00037071,14]
[381132272,1756065039809,-326.0,0.00037071,14]
[381132274,1756065039818,-326.0,0.00037071,14]
[381132276,1756065039828,-326.0,0.00037071,14]
[381132278,1756065039838,-326.0,0.00037071,14]
[381132280,1756065039847,-326.0,0.00037071,14]
[381132282,1756065039856,-326.0,0.00037071,14]
[381132284,1756065039866,-326.0,0.00037071,14]
[381132286,1756065039875,-326.0,0.00037071,14]
[381132288,1756065039884,-326.0,0.00037071,14]
[381132290,1756065039893,-326.0,0.00037071,14]
[381132292,1756065039905,-326.0,0.00037071,14]
[381132294,1756065039914,-326.0,0.00037071,14]
[381132296,1756065039923,-154.85382725,0.00037071,14]
[381132298,1756065039933,-2000.0,0.00037358,7]
[381132300,1756065039942,-4268.79,0.000374,14]
[381132302,1756065039951,-500.0,0.00037512,7]
[381132304,1756065039961,-153.0,0.000378,120]
[381132306,1756065039971,-609.24989691,0.00037808,120]
[381132308,1756065039980,-2371.93655102,0.0003801,5]
[381132310,1756065039990,-238.40294948,0.00038029,30]
[381132312,1756065040000,-500.0,0.00038104,7]
[381132314,1756065040009,-200.0,0.00038655,120]
[381132316,1756065040019,-25495.2734409,0.0003887,3]
[381132318,1756065040028,-376.22310801,0.0003888,3]
[381132320,1756065040038,-307.550522,0.0003888,2]
[381132322,1756065040047,-50990.5468818,0.0003889,3]
[381132324,1756065040059,-99835.25668759,0.000389,60]
[381132326,1756065040071,-655.45059771,0.00039007,2]
[381132328,1756065040081,-327.417029,0.00039654,2]
[381132331,1756065040091,-238.40294948,0.00039755,34]
[381132334,1756065040100,-181.35623738,0.00040044,2]
[381132336,1756065040110,-2755.64889133,0.00040155,10]
[381132339,1756065040119,-500.0,0.00040386,5]
[381132341,1756065040128,-200.0,0.000405,120]
[381132343,1756065040140,-200.0,0.000405,120]
[381132348,1756065040150,-500.0,0.00040578,30]
[381132352,1756065040160,-500.0,0.0004108,5]
[381132355,1756065040169,-500.79919152,0.0004108,5]
[381132359,1756065040180,-153.0,0.000412,120]
[381132362,1756065040190,-238.40294948,0.00041482,37]
[381132365,1756065040199,-1000.0,0.00041628,10]
[381132368,1756065040208,-500.0,0.00041733,10]
[381132371,1756065040218,-500.0,0.00041733,10]
[381132374,1756065040228,-500.0,0.00041947,30]
[381132377,1756065040237,-289.974,0.00041973,2]
[381132380,1756065040247,-1500.0,0.00042176,10]
[381132383,1756065040256,-500.0,0.00042206,30]
[381132386,1756065040265,-655.45059771,0.00042243,28]
[381132389,1756065040275,-1000.0,0.00042281,10]
[381132391,1756065040284,-514.21672685,0.00042281,10]
[381132394,1756065040294,-417.15472785,0.000423,10]
[381132397,1756065040304,-307.550522,0.00042305,2]
[381132398,1756065040313,-1000.0,0.00042465,15]
[381132400,1756065040323,-25495.2734409,0.0004259,3]
[381132402,1756065040332,-12109.32,0.000426,14]
[381132404,1756065040342,-151.0,0.000426,120]
[381132405,1756065040352,-151.0,0.000426,120]
[381132406,1756065040361,-151.0,0.000426,120]
[381132407,1756065040371,-151.0,0.000426,120]
[381132408,1756065040381,-151.0,0.000426,120]
[381132409,1756065040390,-151.0,0.000426,120]
[381132410,1756065040400,-151.0,0.000426,120]
[381132411,1756065040409,-151.0,0.000426,120]
[381132412,1756065040419,-151.0,0.000426,120]
[381132413,1756065040429,-151.0,0.000426,120]
[381132414,1756065040439,-151.0,0.000426,120]
[381132415,1756065040448,-151.0,0.000426,120]
[381132416,1756065040458,-151.0,0.000426,120]
[381132418,1756065040467,-151.0,0.000426,120]
[381132419,1756065040476,-151.0,0.000426,120]
[381132420,1756065040485,-151.0,0.000426,120]
[381132421,1756065040495,-151.0,0.000426,120]
[381132422,1756065040504,-151.0,0.000426,120]
[381132423,1756065040514,-151.0,0.000426,120]
[381132424,1756065040523,-151.0,0.000426,120]
[381132425,1756065040533,-151.0,0.000426,120]
[381132427,1756065040542,-151.0,0.000426,120]
[381132428,1756065040551,-151.0,0.000426,120]
[381132430,1756065040563,-151.0,0.000426,120]
[381132432,1756065040572,-151.0,0.000426,120]
[381132434,1756065040582,-151.0,0.000426,120]
[381132435,1756065040591,-151.0,0.000426,120]
[381132436,1756065040601,-151.0,0.000426,120]
[381132437,1756065040611,-151.0,0.000426,120]
[381132438,1756065040620,-242.612992,0.000426,120]
[381132439,1756065040629,-242.612992,0.000426,120]
[381132441,1756065040638,-242.612992,0.000426,120]
[381132442,1756065040648,-151.0,0.000426,120]
[381132444,1756065040657,-242.612992,0.000426,120]
[381132446,1756065040667,-151.0,0.000426,120]
[381132448,1756065040677,-151.0,0.000426,120]
[381132450,1756065040686,-151.0,0.000426,120]
[381132452,1756065040695,-151.0,0.000426,120]
[381132454,1756065040705,-151.0,0.000426,120]
[381132456,1756065040714,-151.0,0.000426,14]
[381132458,1756065040723,-151.0,0.000426,120]
[381132460,1756065040733,-198.422634,0.000426,120]
[381132461,1756065040742,-151.0,0.000426,120]
[381132463,1756065040751,-151.0,0.000426,120]
[381132464,1756065040761,-151.0,0.000426,120]
[381132465,1756065040770,-151.0,0.000426,30]
[381132466,1756065040779,-151.0,0.000426,120]
[381132467,1756065040789,-151.0,0.000426,120]
[381132468,1756065040798,-151.0,0.000426,120]
[381132469,1756065040809,-151.0,0.000426,120]
[381132470,1756065040818,-151.0,0.000426,120]
[381132471,1756065040828,-151.0,0.000426,120]
[381132472,1756065040837,-151.0,0.000426,120]
[381132473,1756065040846,-151.0,0.000426,120]
[381132474,1756065040856,-151.0,0.000426,120]
[381132475,1756065040867,-151.0,0.000426,120]
[381132476,1756065040876,-151.0,0.000426,120]
[381132477,1756065040886,-151.0,0.000426,15]
[381132478,1756065040896,-151.0,0.000426,15]
[381132479,1756065040905,-151.0,0.000426,15]
[381132480,1756065040915,-284.24196,0.000426,120]
[381132481,1756065040924,-151.0,0.000426,120]
[381132482,1756065040934,-151.0,0.000426,120]
[381132483,1756065040943,-151.0,0.000426,120]
[381132484,1756065040952,-151.0,0.000426,120]
[381132485,1756065040962,-289.460494,0.000426,120]
[381132486,1756065040971,-1264.822698,0.000426,120]
[381132487,1756065040981,-151.0,0.000426,120]
[381132488,1756065040990,-289.460494,0.000426,120]
[381132490,1756065041002,-1264.822698,0.000426,120]
[381132491,1756065041011,-151.0,0.000426,120]
[381132493,1756065041021,-1264.822698,0.000426,120]
[381132495,1756065041030,-289.460494,0.000426,120]
[381132497,1756065041039,-151.0,0.000426,120]
[381132498,1756065041049,-1264.822698,0.000426,120]
[381132500,1756065041063,-289.460494,0.000426,120]
[381132502,1756065041074,-151.0,0.000426,120]
[381132503,1756065041083,-2000.0,0.00042724,10]
[381132504,1756065041093,-200.0,0.000428,120]
[381132505,1756065041103,-1500.0,0.00042829,10]
[381132507,1756065041112,-154.394506,0.00042846,60]
[381132508,1756065041121,-417.15472785,0.00043,120]
[381132509,1756065041131,-160.0,0.00043,10]
[381132510,1756065041141,-160.0,0.00043,120]
[381132511,1756065041151,-844.67759735,0.00043,10]
[381132512,1756065041160,-376.22310801,0.00043,10]
[381132513,1756065041169,-217.07852671,0.00043,10]
[381132514,1756065041179,-160.0,0.00043175,3]
[381132515,1756065041189,-238.40294948,0.00043208,41]
[381132516,1756065041199,-1000.0,0.00043272,10]
[381132517,1756065041208,-2000.0,0.00043377,10]
[381132518,1756065041218,-293.269847,0.0004361,30]
[381132519,1756065041227,-151.0,0.0004361,120]
[381132520,1756065041237,-151.0,0.0004361,120]
[381132521,1756065041247,-151.0,0.0004361,120]
[381132522,1756065041256,-151.0,0.0004361,120]
[381132523,1756065041265,-151.0,0.0004361,120]
[381132524,1756065041275,-151.0,0.0004361,120]
[381132525,1756065041284,-151.0,0.0004361,120]
[381132526,1756065041293,-151.0,0.0004361,120]
[381132527,1756065041303,-151.0,0.0004361,120]
[381132528,1756065041314,-151.0,0.0004361,120]
[381132529,1756065041324,-151.0,0.0004361,120]